fUST/lending_fUST_20250810
["ID","MTS","AMOUNT","RATE_DAILY","PERIOD"]
[378325820,1754826641174,-12668.57659669,0.00022103,2]
[378325821,1754826641186,-312.16666667,0.00022103,2]
[378325822,1754826641199,-461.62346162,0.00022103,2]
[378325823,1754826641210,-231.96268195,0.00022103,2]
[378325824,1754826641221,-216.64838636,0.00022103,2]
[378325825,1754826641232,-160.0,0.00022103,2]
[378325826,1754826641242,-527.86640923,0.00022103,2]
[378325827,1754826641253,-215.44987349,0.00022103,2]
[378325828,1754826641263,-160.0,0.00022103,2]
[378325829,1754826641272,-160.0,0.00022103,2]
[378325830,1754826641282,-843.0869304,0.00022103,2]
[378325831,1754826641292,-500.0,0.00022129,2]
[378325832,1754826641303,-500.0,0.00022129,2]
[378325833,1754826641313,-151.0,0.00022129,2]
[378325834,1754826641323,-300.0,0.00022129,2]
[378325835,1754826641333,-500.0,0.00022129,2]
[378325836,1754826641343,-300.0,0.00022129,2]
[378325837,1754826641353,-151.0,0.00022129,2]
[378325838,1754826641363,-151.0,0.00022129,2]
[378325839,1754826641373,-300.0,0.00022129,2]
[378325840,1754826641383,-151.0,0.00022129,2]
[378325841,1754826641393,-151.0,0.00022129,2]
[378325842,1754826641403,-151.0,0.00022129,2]
[378325843,1754826641414,-151.0,0.00022129,2]
[378325844,1754826641424,-151.0,0.00022129,2]
[378325845,1754826641434,-151.0,0.00022129,2]
[378325846,1754826641443,-151.0,0.00022129,2]
[378325847,1754826641456,-151.0,0.00022129,2]
[378325848,1754826641466,-151.0,0.00022129,2]
[378325849,1754826641475,-151.0,0.00022129,2]
[378325850,1754826641485,-151.0,0.00022129,2]
[378325851,1754826641495,-151.0,0.00022129,2]
[378325852,1754826641504,-151.0,0.00022129,2]
[378325853,1754826641514,-151.0,0.00022129,2]
[378325854,1754826641523,-500.0,0.00022129,2]
[378325855,1754826641533,-151.0,0.00022129,2]
[378325856,1754826641542,-500.0,0.00022129,2]
[378325857,1754826641552,-151.0,0.00022129,2]
[378325858,1754826641562,-151.0,0.00022129,2]
[378325859,1754826641572,-500.0,0.00022129,2]
[378325860,1754826641582,-151.0,0.00022129,2]
[378325861,1754826641592,-151.0,0.00022129,2]
[378325862,1754826641603,-18502.69577858,0.00022129,2]
[378325863,1754826641614,-151.0,0.00022129,2]
[378325864,1754826641625,-151.0,0.00022129,2]
[378325865,1754826641635,-500.0,0.00022129,2]
[378325866,1754826641645,-151.0,0.00022129,2]
[378325867,1754826641655,-500.0,0.00022129,2]
[378325868,1754826641665,-151.0,0.00022129,2]
[378325869,1754826641675,-500.0,0.00022129,2]
[378325870,1754826641685,-151.0,0.00022129,2]
[378325871,1754826641698,-151.0,0.00022129,2]
[378325872,1754826641708,-500.0,0.00022129,2]
[378325873,1754826641717,-151.0,0.00022129,2]
[378325874,1754826641729,-151.0,0.00022129,2]
[378325875,1754826641739,-500.0,0.00022129,2]
[378325876,1754826641748,-151.0,0.00022129,2]
[378325877,1754826641758,-500.0,0.00022129,2]
[378325878,1754826641768,-151.0,0.00022129,2]
[378325879,1754826641778,-151.0,0.00022129,2]
[378325880,1754826641788,-500.0,0.00022129,2]
[378325881,1754826641798,-2183.31810187,0.00022129,2]
[378325882,1754826641808,-151.0,0.00022129,2]
[378325883,1754826641818,-500.0,0.00022129,2]
[378325884,1754826641828,-151.0,0.00022129,2]
[378325885,1754826641838,-500.0,0.00022129,2]
[378325886,1754826641849,-196.83053362,0.00022129,2]
[378325887,1754826641859,-500.0,0.00022129,2]
[378325888,1754826641872,-151.0,0.00022129,2]
[378325907,1754826642042,-151.0,0.00022129,2]
[378325908,1754826642051,-151.0,0.00022129,2]
[378325910,1754826642061,-151.0,0.00022129,2]
[378325913,1754826642071,-151.0,0.00022129,2]
[378325914,1754826642080,-151.0,0.00022129,2]
[378325917,1754826642090,-151.0,0.00022129,2]
[378325918,1754826642100,-250.0,0.00022129,2]
[378325920,1754826642109,-151.0,0.00022129,2]
[378325922,1754826642119,-250.0,0.00022129,2]
[378325925,1754826642129,-151.0,0.00022129,2]
[378325926,1754826642139,-250.0,0.00022129,2]
[378325929,1754826642149,-1527.07,0.00022157,2]
[378325931,1754826642159,-460.0,0.00022157,2]
[378325933,1754826642168,-674.71,0.00022157,2]
[378325935,1754826642177,-504.57187711,0.00022173,2]
[378325936,1754826642186,-400.0,0.00022173,2]
[378325938,1754826642196,-500.0,0.00022173,2]
[378325940,1754826642205,-500.0,0.00022173,2]
[378325942,1754826642215,-625.12,0.0002219,2]
[378325944,1754826642224,-1226.98,0.0002219,2]
[378325946,1754826642234,-460.0,0.0002219,2]
[378325948,1754826642243,-460.0,0.0002219,2]
[378325950,1754826642253,-617.43,0.00022256,2]
[378325952,1754826642262,-460.0,0.00022257,2]
[378325954,1754826642272,-460.0,0.00022257,2]
[378325956,1754826642282,-956.73,0.00022257,2]
[378325958,1754826642291,-460.0,0.00022257,2]
[378325960,1754826642302,-1000.0,0.00022316,2]
[378325963,1754826642312,-732.45,0.00022321,2]
[378325964,1754826642322,-788.2,0.00022321,2]
[378325966,1754826642331,-540.2,0.0002233,2]
[378325968,1754826642341,-460.0,0.0002233,2]
[378325971,1754826642352,-460.0,0.0002233,2]
[378325972,1754826642362,-460.0,0.0002233,2]
[378325974,1754826642372,-460.37,0.0002233,2]
[378325977,1754826642382,-460.0,0.0002233,2]
[378325978,1754826642391,-1527.07,0.00022431,2]
[378325981,1754826642401,-460.0,0.00022431,2]
[378325982,1754826642411,-674.71,0.00022431,2]
[378325984,1754826642420,-625.12,0.00022464,2]
[378325986,1754826642430,-1226.98,0.00022464,2]
[378325988,1754826642439,-460.0,0.00022464,2]
[378325990,1754826642448,-460.0,0.00022464,2]
[378325992,1754826642457,-617.43,0.0002253,2]
[378325994,1754826642467,-460.0,0.00022531,2]
[378325997,1754826642476,-460.0,0.00022531,2]
[378325999,1754826642486,-956.73,0.00022531,2]
[378326001,1754826642495,-460.0,0.00022531,2]
[378326003,1754826642505,-368.71033123,0.0002255,2]
[378326005,1754826642514,-732.45,0.00022595,2]
[378326008,1754826642524,-788.2,0.00022595,2]
[378326010,1754826642533,-540.2,0.00022604,2]
[378326013,1754826642542,-460.0,0.00022604,2]
[378326015,1754826642551,-448.47322616,0.00022604,2]
[378326017,1754826642562,-460.0,0.00022604,2]
[378326019,1754826642571,-460.37,0.00022604,2]
[378326021,1754826642580,-460.0,0.00022604,2]
[378326023,1754826642589,-260.0,0.00022651,2]
[378326025,1754826642598,-151.0,0.00022677,2]
[378326026,1754826642608,-1527.07,0.00022705,2]
[378326028,1754826642621,-460.0,0.00022705,2]
[378326030,1754826642630,-674.71,0.00022705,2]
[378326032,1754826642640,-1000.0,0.00022721,2]
[378326034,1754826642650,-1000.0,0.00022721,2]
[378326036,1754826642659,-625.12,0.00022738,2]
[378326038,1754826642668,-1226.98,0.00022738,2]
[378326040,1754826642678,-460.0,0.00022738,2]
[378326042,1754826642690,-460.0,0.00022738,2]
[378326044,1754826642701,-617.43,0.00022804,2]
[378326046,1754826642710,-460.0,0.00022805,2]
[378326048,1754826642719,-460.0,0.00022805,2]
[378326050,1754826642729,-956.73,0.00022805,2]
[378326052,1754826642738,-460.0,0.00022805,2]
[378326054,1754826642749,-732.45,0.00022869,2]
[378326056,1754826642759,-788.2,0.00022869,2]
[378326058,1754826642769,-540.2,0.00022878,2]
[378326060,1754826642779,-460.0,0.00022878,2]
[378326062,1754826642789,-460.0,0.00022878,2]
[378326064,1754826642799,-460.37,0.00022878,2]
[378326066,1754826642813,-460.0,0.00022878,2]
[378326069,1754826642824,-1527.07,0.00022979,2]
[378326070,1754826642833,-460.0,0.00022979,2]
[378326072,1754826642843,-674.71,0.00022979,2]
[378326074,1754826642852,-160.0,0.00023,2]
[378326076,1754826642861,-625.12,0.00023012,2]
[378326079,1754826642872,-1226.98,0.00023012,2]
[378326080,1754826642881,-223.37655777,0.00023012,2]
[378326082,1754826642891,-460.0,0.00023012,2]
[378326084,1754826642901,-200.0,0.00023049,15]
[378326086,1754826642910,-200.0,0.00023049,15]
[378326088,1754826642920,-300.0,0.00023049,15]
[378326090,1754826642928,-617.43,0.00023078,2]
[378326092,1754826642938,-460.0,0.00023079,2]
[378326094,1754826642949,-460.0,0.00023079,2]
[378326096,1754826642959,-956.73,0.00023079,2]
[378326098,1754826642969,-732.45,0.00023143,2]
[378326100,1754826642978,-788.2,0.00023143,2]
[378326102,1754826642987,-540.2,0.00023152,2]
[378326104,1754826642997,-460.0,0.00023152,2]
[378326106,1754826643006,-460.0,0.00023152,2]
[378326108,1754826643015,-460.37,0.00023152,2]
[378326110,1754826643025,-460.0,0.00023152,2]
[378326112,1754826643034,-408.0,0.00023163,2]
[378326114,1754826643044,-2150.0,0.00023163,2]
[378326116,1754826643053,-636.0,0.00023163,2]
[378326118,1754826643063,-971.0,0.00023163,2]
[378326120,1754826643072,-859.83,0.00023188,2]
[378326122,1754826643082,-360.0,0.00023199,2]
[378326124,1754826643091,-151.0,0.00023225,2]
[378326127,1754826643101,-1527.07,0.00023253,2]
[378326130,1754826643110,-460.0,0.00023253,2]
[378326133,1754826643119,-674.71,0.00023253,2]
[378326136,1754826643128,-1500.0,0.00023268,2]
[378326138,1754826643138,-1500.0,0.00023268,2]
[378326140,1754826643147,-625.12,0.00023286,2]
[378326142,1754826643157,-1226.98,0.00023286,2]
[378326144,1754826643166,-460.0,0.00023286,2]
[378326146,1754826643175,-500.0,0.00023288,2]
[378326148,1754826643184,-500.0,0.000233,2]
[378326150,1754826643193,-500.0,0.0002333,2]
[378326152,1754826643204,-150.0,0.0002333,2]
[378326154,1754826643213,-500.0,0.00023345,2]
[378326156,1754826643222,-617.43,0.00023352,2]
[378326157,1754826643231,-460.0,0.00023353,2]
[378326159,1754826643240,-460.0,0.00023353,2]
[378326161,1754826643250,-956.73,0.00023353,2]
[378326163,1754826643259,-4294.63627302,0.00023409,2]
[378326165,1754826643269,-732.45,0.00023417,2]
[378326167,1754826643279,-788.2,0.00023417,2]
[378326169,1754826643288,-540.2,0.00023426,2]
[378326171,1754826643298,-434.93559887,0.00023426,2]
[378326173,1754826643312,-460.0,0.00023426,2]
[378326175,1754826643321,-460.37,0.00023426,2]
[378326177,1754826643331,-460.0,0.00023426,2]
[378326179,1754826643340,-153.0,0.0002346,2]
[378326181,1754826643349,-153.0,0.0002346,2]
[378326183,1754826643358,-151.0,0.00023498,2]
[378326185,1754826643368,-19187.29552238,0.00023498,2]
[378326187,1754826643377,-1527.07,0.00023527,2]
[378326189,1754826643386,-460.0,0.00023527,2]
[378326191,1754826643396,-674.71,0.00023527,2]
[378326193,1754826643405,-350.2,0.00023542,2]
[378326195,1754826643415,-625.12,0.0002356,2]
[378326197,1754826643424,-1226.98,0.0002356,2]
[378326199,1754826643433,-460.0,0.0002356,2]
[378326201,1754826643442,-1242.0,0.00023572,2]
[378326203,1754826643453,-151.0,0.000236,5]
[378326205,1754826643462,-617.43,0.00023626,2]
[378326207,1754826643471,-460.0,0.00023627,2]
[378326209,1754826643481,-460.0,0.00023627,2]
[378326211,1754826643490,-956.73,0.00023627,2]
[378326213,1754826643500,-1242.0,0.00023641,2]
[378326215,1754826643509,-732.45,0.00023691,2]
[378326217,1754826643522,-788.2,0.00023691,2]
[378326219,1754826643531,-540.2,0.000237,2]
[378326221,1754826643541,-460.0,0.000237,2]
[378326223,1754826643550,-460.37,0.000237,2]
[378326225,1754826643560,-460.0,0.000237,2]
[378326227,1754826643569,-276.01,0.00023727,2]
[378326229,1754826643578,-460.0,0.00023747,2]
[378326231,1754826643587,-1527.07,0.00023801,2]
[378326232,1754826643596,-460.0,0.00023801,2]
[378326234,1754826643607,-674.71,0.00023801,2]
[378326237,1754826643621,-200.68,0.00023813,2]
[378326239,1754826643630,-2000.0,0.00023816,2]
[378326241,1754826643640,-2000.0,0.00023816,2]
[378326243,1754826643650,-625.12,0.00023834,2]
[378326245,1754826643659,-1226.98,0.00023834,2]
[378326247,1754826643669,-460.0,0.00023834,2]
[378326248,1754826643678,-1000.0,0.00023848,2]
[378326250,1754826643688,-1000.0,0.00023878,2]
[378326252,1754826643700,-250.0,0.00023878,2]
[378326254,1754826643710,-1055.93351593,0.00023893,2]
[378326256,1754826643720,-971.32286644,0.000239,2]
[378326258,1754826643730,-617.43,0.000239,2]
[378326260,1754826643740,-334.33519152,0.00023901,2]
[378326262,1754826643749,-460.0,0.00023901,2]
[378326264,1754826643759,-956.73,0.00023901,2]
[378326266,1754826643768,-150.0,0.00023935,2]
[378326268,1754826643778,-732.45,0.00023965,2]
[378326270,1754826643788,-788.2,0.00023965,2]
[378326272,1754826643797,-540.2,0.00023974,2]
[378326274,1754826643807,-460.0,0.00023974,2]
[378326276,1754826643816,-460.37,0.00023974,2]
[378326278,1754826643826,-460.0,0.00023974,2]
[378326280,1754826643835,-30118.06656572,0.00024,7]
[378326283,1754826643852,-1182.5,0.00024,7]
[378326314,1754826644200,-460.0,0.00020677,2]
[378326315,1754826644210,-319.09376376,0.00020686,2]
[378326316,1754826644259,-67.54231097,0.00020686,2]
[378326317,1754826644268,-460.0,0.0002082,2]
[378326318,1754826644277,-460.0,0.00021094,2]
[378326319,1754826644287,-460.0,0.00021368,2]
[378326320,1754826644295,-460.0,0.00021642,2]
[378326321,1754826644305,-386.6360747,0.00021715,2]
[378326322,1754826644314,-460.0,0.00021916,2]
[378326323,1754826644323,-151.0,0.00022129,2]
[378326324,1754826644331,-250.0,0.00022129,2]
[378326325,1754826644340,-151.0,0.00022129,2]
[378326326,1754826644350,-250.0,0.00022129,2]
[378326327,1754826644359,-250.0,0.00022129,2]
[378326328,1754826644368,-151.0,0.00022129,2]
[378326329,1754826644377,-250.0,0.00022129,2]
[378326330,1754826644386,-250.0,0.00022129,2]
[378326331,1754826644394,-151.0,0.00022129,2]
[378326332,1754826644403,-250.0,0.00022129,2]
[378326333,1754826644412,-151.0,0.00022129,2]
[378326334,1754826644421,-250.0,0.00022129,2]
[378326335,1754826644430,-460.0,0.0002219,2]
[378326336,1754826644439,-460.0,0.00022464,2]
[378326337,1754826644450,-460.0,0.00022738,2]
[378326338,1754826644459,-476.08994744,0.00023012,2]
[378326341,1754826644570,-68699.43343428,0.00024,7]
[378326343,1754826644580,-215.44987349,0.00024,7]
[378326345,1754826644589,-843.0869304,0.00024,7]
[378326347,1754826644599,-155.87088673,0.00024,7]
[378326480,1754826645918,5000.0,0.00022,10]
[378326546,1754826646522,-151.0,0.00022129,2]
[378326548,1754826646531,-250.0,0.00022129,2]
[378326550,1754826646541,-216.01363067,0.00022129,2]
[378326552,1754826646551,-250.0,0.00022129,2]
[378326554,1754826646560,-250.0,0.00022129,2]
[378326556,1754826646569,-250.0,0.00022129,2]
[378326558,1754826646579,-386.6360747,0.00022743,2]
[378326560,1754826646588,-156.29577994,0.00024,7]
[378326562,1754826646597,-527.86640923,0.00024,7]
[378326564,1754826646607,-231.96268195,0.00024,7]
[378326566,1754826646619,-461.62346162,0.00024,7]
[378326568,1754826646628,-160.0,0.00024,7]
[378326570,1754826646637,-216.64838636,0.00024,7]
[378326572,1754826646646,-1235.45486878,0.00024,7]
[378326574,1754826646659,-976.875,0.00024,7]
[378328998,1754826815364,200.0,0.00020997,15]
[378329000,1754826909188,150.0,0.00024833,30]
[378329017,1754827009005,-1150.0,0.00019897,2]
[378329018,1754827009041,-4223.84204201,0.000199,2]
[378329019,1754827009070,-659.0,0.00019997,2]
[378329020,1754827009101,-300.0,0.00019997,2]
[378329021,1754827017420,217.184548,0.00019423,2]
[378329023,1754827023650,300.0,0.00019997,2]
[378329025,1754827041446,4228.93751504,0.000199,2]
[378329026,1754827046298,2588.19385294,0.00019997,2]
[378329027,1754827046322,2411.80614706,0.00019997,2]
[378329028,1754827049210,543.15125368,0.00019997,2]
[378329029,1754827053904,185.5979594,0.00019898,2]
[378329030,1754827059109,460.0,0.00019997,2]
[378329031,1754827061624,5000.0,0.00019997,2]
[378329033,1754827076255,8711.23063601,0.00031473,120]
[378329034,1754827083101,300.0,0.00019997,2]
[378329035,1754827115780,200.0,0.00020997,15]
[378329036,1754827116553,300.0,0.00020997,15]
[378329037,1754827139123,2105.10801228,0.00019899,2]
[378329038,1754827141534,460.0,0.00019997,2]
[378329039,1754827142925,300.0,0.00019997,2]
[378329041,1754827163425,460.0,0.00019997,2]
[378329042,1754827166325,460.0,0.00019997,2]
[378329044,1754827183901,644.91,0.00019997,2]
[378329046,1754827202389,300.0,0.00019997,2]
[378329048,1754827205767,460.0,0.00019997,2]
[378329049,1754827218333,460.0,0.00019997,2]
[378329050,1754827236873,931.75,0.00019997,2]
[378329051,1754827253393,4352.31797406,0.000199,2]
[378329052,1754827256919,165.35865352,0.00019997,2]
[378329053,1754827256943,294.64134648,0.00019997,2]
[378329056,1754827262891,300.0,0.00019997,2]
[378329057,1754827279327,460.0,0.00019997,2]
[378329058,1754827283348,460.0,0.00019997,2]
[378329059,1754827288088,460.0,0.00019997,2]
[378329060,1754827291811,460.0,0.00019997,2]
[378329061,1754827295116,460.0,0.00019997,2]
[378329062,1754827300316,487.19993008,0.00019997,2]
[378329063,1754827304487,460.0,0.00019997,2]
[378329064,1754827312823,460.0,0.00019997,2]
[378329065,1754827319069,191.16822085,0.00019997,2]
[378329066,1754827322396,300.0,0.00019997,2]
[378329067,1754827326684,460.0,0.00019997,2]
[378329068,1754827329715,460.0,0.00019997,2]
[378329072,1754827331877,14286.99050259,0.00019204,2]
[378329073,1754827331902,10613.00949741,0.00019204,2]
[378329074,1754827335843,460.0,0.00019997,2]
[378329075,1754827342837,5000.0,0.00019997,2]
[378329076,1754827357178,460.0,0.00019997,2]
[378329077,1754827358111,1841.96951078,0.00019898,2]
[378329079,1754827360899,460.0,0.00019997,2]
[378329080,1754827369059,-400.0,0.00019998,2]
[378329081,1754827369081,-460.0,0.00019998,2]
[378329082,1754827369102,-475.86284599,0.00019998,2]
[378329083,1754827369131,-460.0,0.00019998,2]
[378329084,1754827369152,-460.0,0.00019998,2]
[378329085,1754827369173,-460.0,0.00019998,2]
[378329086,1754827369197,-460.0,0.00019998,2]
[378329087,1754827369218,-460.0,0.00019998,2]
[378329088,1754827369239,-460.0,0.00019998,2]
[378329089,1754827369260,-460.0,0.00019998,2]
[378329090,1754827369280,-460.0,0.00019998,2]
[378329091,1754827369301,-460.0,0.00019998,2]
[378329092,1754827369323,-460.0,0.00019998,2]
[378329093,1754827369343,-460.0,0.00019998,2]
[378329094,1754827369364,-476.96763144,0.00019998,2]
[378329095,1754827369383,-460.0,0.00019998,2]
[378329096,1754827369403,-460.0,0.00019998,2]
[378329097,1754827369421,-460.0,0.00019998,2]
[378329098,1754827369442,-460.0,0.00019998,2]
[378329099,1754827369461,-484.38406864,0.00019998,2]
[378329100,1754827369481,-460.89818697,0.00019998,2]
[378329101,1754827369501,-460.0,0.00019998,2]
[378329102,1754827369521,-460.0,0.00019998,2]
[378329103,1754827369541,-460.0,0.00019998,2]
[378329104,1754827369561,-460.0,0.00019998,2]
[378329105,1754827369583,-460.0,0.00019998,2]
[378329106,1754827369604,-460.0,0.00019998,2]
[378329107,1754827369625,-460.0,0.00019998,2]
[378329108,1754827369646,-460.0,0.00019998,2]
[378329109,1754827369666,-460.0,0.00019998,2]
[378329110,1754827369691,-460.0,0.00019998,2]
[378329111,1754827369712,-468.92,0.00019998,2]
[378329112,1754827369732,-460.0,0.00019998,2]
[378329113,1754827369754,-460.0,0.00019998,2]
[378329114,1754827369774,-460.0,0.00019998,2]
[378329115,1754827369803,-460.0,0.00019998,2]
[378329116,1754827369830,-464.28213542,0.00019998,2]
[378329117,1754827369851,-460.0,0.00019998,2]
[378329118,1754827369873,-460.0,0.00019998,2]
[378329119,1754827369894,-460.0,0.00019998,2]
[378329120,1754827369914,-460.0,0.00019998,2]
[378329121,1754827369936,-509.52,0.00019998,2]
[378329122,1754827369958,-699.51,0.00019998,2]
[378329123,1754827369979,-460.0,0.00019998,2]
[378329124,1754827370000,-460.0,0.00019998,2]
[378329125,1754827370021,-460.0,0.00019998,2]
[378329126,1754827370042,-460.0,0.00019998,2]
[378329127,1754827370062,-460.0,0.00019998,2]
[378329128,1754827370083,-460.0,0.00019998,2]
[378329129,1754827370103,-460.0,0.00019998,2]
[378329130,1754827370124,-460.0,0.00019998,2]
[378329131,1754827370242,-460.0,0.00019998,2]
[378329132,1754827370295,-460.0,0.00019998,2]
[378329133,1754827370316,-476.87435475,0.00019998,2]
[378329134,1754827370336,-460.0,0.00019998,2]
[378329135,1754827370356,-500.0,0.00019998,2]
[378329136,1754827370378,-460.0,0.00019998,2]
[378329137,1754827370398,-460.0,0.00019998,2]
[378329138,1754827370419,-460.0,0.00019998,2]
[378329139,1754827370440,-460.0,0.00019998,2]
[378329140,1754827370460,-460.0,0.00019998,2]
[378329141,1754827370480,-460.0,0.00019998,2]
[378329142,1754827370501,-860.34,0.00019998,2]
[378329143,1754827370521,-460.0,0.00019998,2]
[378329144,1754827370541,-460.0,0.00019998,2]
[378329145,1754827370561,-460.0,0.00019998,2]
[378329146,1754827370583,-460.0,0.00019998,2]
[378329147,1754827370603,-460.0,0.00019998,2]
[378329148,1754827370623,-460.0,0.00019998,2]
[378329149,1754827370643,-460.0,0.00019998,2]
[378329150,1754827370663,-460.0,0.00019998,2]
[378329151,1754827370687,-460.0,0.00019998,2]
[378329152,1754827370706,-460.0,0.00019998,2]
[378329153,1754827370726,-467.72130027,0.00019998,2]
[378329154,1754827370746,-5375.43330771,0.00019998,2]
[378329155,1754827370767,-500.0,0.00019999,2]
[378329156,1754827370789,-460.0,0.00019999,2]
[378329157,1754827370819,-460.0,0.00019999,2]
[378329158,1754827370839,-460.0,0.00019999,2]
[378329159,1754827370858,-460.0,0.00019999,2]
[378329160,1754827370878,-460.0,0.00019999,2]
[378329161,1754827370898,-460.0,0.00019999,2]
[378329162,1754827370918,-460.0,0.00019999,2]
[378329163,1754827370938,-460.0,0.00019999,2]
[378329164,1754827370957,-460.0,0.00019999,2]
[378329165,1754827370977,-460.0,0.00019999,2]
[378329166,1754827370997,-460.0,0.00019999,2]
[378329167,1754827371018,-460.0,0.00019999,2]
[378329168,1754827371038,-497.67529563,0.00019999,2]
[378329169,1754827371058,-460.0,0.00019999,2]
[378329170,1754827371080,-460.0,0.00019999,2]
[378329171,1754827371100,-460.0,0.00019999,2]
[378329172,1754827371121,-460.0,0.00019999,2]
[378329173,1754827371142,-460.0,0.00019999,2]
[378329174,1754827371163,-460.0,0.00019999,2]
[378329175,1754827371183,-541.61087318,0.00019999,2]
[378329176,1754827371260,460.0,0.00019997,2]
[378329177,1754827372911,460.0,0.00019997,2]
[378329178,1754827379046,245.02099181,0.00019997,2]
[378329179,1754827379068,214.97900819,0.00019997,2]
[378329180,1754827381708,460.0,0.00019997,2]
[378329181,1754827385325,460.0,0.00019997,2]
[378329182,1754827388719,163.084067,0.00019409,2]
[378329183,1754827391636,460.0,0.00019997,2]
[378329184,1754827395108,460.0,0.00019997,2]
[378329185,1754827396439,460.0,0.00019997,2]
[378329186,1754827399021,460.0,0.00019997,2]
[378329187,1754827408184,460.0,0.00019997,2]
[378329188,1754827409387,460.0,0.00019997,2]
[378329189,1754827409748,460.0,0.00019997,2]
[378329190,1754827411083,460.0,0.00019997,2]
[378329191,1754827413335,460.0,0.00019997,2]
[378329192,1754827415564,200.0,0.00020997,15]
[378329193,1754827416366,300.0,0.00020997,15]
[378329194,1754827424005,460.0,0.00019997,2]
[378329196,1754827425722,951.37,0.00019997,2]
[378329198,1754827443148,460.0,0.00019997,2]
[378329199,1754827444630,300.0,0.00019997,2]
[378329201,1754827448589,5462.22215177,0.000199,2]
[378329202,1754827456339,1120.1,0.00019997,2]
[378329203,1754827457522,460.0,0.00019997,2]
[378329204,1754827460831,460.0,0.00019997,2]
[378329205,1754827475169,460.0,0.00019997,2]
[378329206,1754827475725,460.0,0.00019997,2]
[378329207,1754827479974,460.0,0.00019997,2]
[378329208,1754827482501,460.0,0.00019997,2]
[378329209,1754827489560,460.0,0.00019997,2]
[378329210,1754827499013,460.0,0.00019997,2]
[378329212,1754827502454,300.0,0.00019997,2]
[378329214,1754827502728,300.0,0.00019997,2]
[378329215,1754827505404,460.0,0.00019997,2]
[378329216,1754827505453,1068.24477304,0.00019997,2]
[378329217,1754827505483,131.75522696,0.00019997,2]
[378329218,1754827507145,460.0,0.00019997,2]
[378329219,1754827509572,284.81080699,0.00019997,2]
[378329221,1754827511738,460.0,0.00019997,2]
[378329222,1754827511967,460.0,0.00019997,2]
[378329223,1754827512698,460.0,0.00019997,2]
[378329231,1754827514667,2500.0,0.00023,60]
[378329235,1754827515107,460.0,0.00019997,2]
[378329236,1754827516484,460.0,0.00019997,2]
[378329241,1754827520253,460.0,0.00019997,2]
[378329243,1754827521012,473.60785758,0.00019997,2]
[378329245,1754827523123,471.59455541,0.00019997,2]
[378329246,1754827526371,460.0,0.00019997,2]
[378329249,1754827530784,460.0,0.00019997,2]
[378329250,1754827531016,460.0,0.00019997,2]